fUSD/lending_fUSD_20241030
["ID","MTS","AMOUNT","RATE_DAILY","PERIOD"]
[341049242,1730302272044,-500.0,0.00036986,5]
[341049243,1730302272053,-1013.76,0.00036986,5]
[341049244,1730302272063,-1525.36,0.00036986,5]
[341049245,1730302272073,-994.82,0.00036986,5]
[341049246,1730302272083,-1722.33,0.00036986,5]
[341049247,1730302272093,-500.0,0.00036986,5]
[341049248,1730302272103,-765.48,0.00036986,5]
[341049249,1730302272113,-520.05,0.00036986,5]
[341049250,1730302272124,-675.19,0.00036986,5]
[341049251,1730302272133,-746.68,0.00036986,5]
[341049252,1730302272143,-784.67,0.00036986,5]
[341049253,1730302272153,-500.0,0.00036986,5]
[341049254,1730302272163,-1069.78,0.00036986,5]
[341049255,1730302272173,-736.62,0.00036986,5]
[341049256,1730302272183,-854.42,0.00036986,5]
[341049257,1730302272192,-606.31,0.00036986,5]
[341049258,1730302272205,-500.0,0.00036986,5]
[341049259,1730302272214,-500.0,0.00036986,5]
[341049260,1730302272223,-500.0,0.00036986,5]
[341049261,1730302272232,-674.49,0.00036986,5]
[341049262,1730302272242,-982.93,0.00036986,5]
[341049263,1730302272252,-778.7,0.00036986,5]
[341049264,1730302272263,-728.13,0.00036986,5]
[341049265,1730302272272,-500.0,0.00036986,5]
[341049266,1730302272282,-1522.75,0.00036986,5]
[341049267,1730302272292,-552.1,0.00036986,5]
[341049268,1730302272301,-500.0,0.00036986,5]
[341049269,1730302272310,-662.62,0.00036986,5]
[341049270,1730302272319,-1018.42,0.00036986,5]
[341049271,1730302272328,-500.0,0.00036986,5]
[341049272,1730302272338,-500.0,0.00036986,5]
[341049273,1730302272347,-1327.53,0.00036986,5]
[341049274,1730302272357,-500.0,0.00036986,5]
[341049275,1730302272366,-560.36,0.00036986,5]
[341049276,1730302272375,-607.17,0.00036986,5]
[341049277,1730302272386,-500.0,0.00036986,5]
[341049278,1730302272395,-508.13,0.00036986,5]
[341049279,1730302272407,-1605.64,0.00036986,2]
[341049280,1730302272416,-500.0,0.00036986,5]
[341049281,1730302272426,-863.12,0.00036986,5]
[341049282,1730302272436,-1678.61,0.00036986,5]
[341049283,1730302272448,-656.55,0.00036986,5]
[341049284,1730302272457,-893.64,0.00036986,5]
[341049285,1730302272467,-1610.11,0.00036986,5]
[341049286,1730302272477,-742.19,0.00036986,5]
[341049287,1730302272487,-785.2,0.00036986,5]
[341049288,1730302272497,-638.8,0.00036986,5]
[341049289,1730302272507,-536.5,0.00036986,5]
[341049290,1730302272516,-948.73,0.00036986,5]
[341049291,1730302272526,-500.0,0.00036986,5]
[341049292,1730302272535,-596.98,0.00036986,5]
[341049293,1730302272545,-1435.74,0.00036986,5]
[341049294,1730302272557,-500.0,0.00036986,5]
[341049295,1730302272568,-1131.97,0.00036986,5]
[341049296,1730302272577,-2913.63,0.00036986,5]
[341049297,1730302272587,-500.0,0.00036986,5]
[341049298,1730302272598,-500.0,0.00036986,5]
[341049299,1730302272608,-1246.85,0.00036986,5]
[341049300,1730302272618,-909.5,0.00036986,5]
[341049301,1730302272628,-682.68,0.00036986,5]
[341049302,1730302272639,-512.41,0.00036986,5]
[341049303,1730302272649,-1653.57,0.00036986,5]
[341049304,1730302272659,-500.0,0.00036986,5]
[341049305,1730302272669,-568.82,0.00036986,5]
[341049306,1730302272678,-607.5,0.00036986,5]
[341049307,1730302272688,-500.0,0.00036986,5]
[341049308,1730302272701,-685.64,0.00036986,5]
[341049309,1730302272710,-500.0,0.00036986,5]
[341049310,1730302272720,-529.75,0.00036986,5]
[341049311,1730302272730,-548.22,0.00036986,5]
[341049312,1730302272739,-728.2,0.00036986,5]
[341049313,1730302272749,-579.42159626,0.00036986,5]
[341049314,1730302272758,-500.0,0.00036986,5]
[341049315,1730302272768,-1132.3,0.00036986,5]
[341049316,1730302272778,-597.03,0.00036986,5]
[341049317,1730302272787,-567.6790091,0.00036986,5]
[341049318,1730302272796,-1047.4,0.00036986,5]
[341049319,1730302272806,-770.64,0.00036986,5]
[341049320,1730302272815,-535.78,0.00036986,5]
[341049321,1730302272825,-507.29,0.00036986,5]
[341049322,1730302272835,-536.48,0.00036986,5]
[341049323,1730302272844,-879.42,0.00036986,5]
[341049324,1730302272853,-1152.94,0.00036986,5]
[341049325,1730302272865,-500.0,0.00036986,5]
[341049326,1730302272875,-538.17,0.00036986,5]
[341049327,1730302272884,-1061.7,0.00036986,5]
[341049328,1730302272894,-745.29,0.00036986,5]
[341049329,1730302272903,-3103.25,0.00036986,5]
[341049330,1730302272913,-1669.21,0.00036986,5]
[341049331,1730302272924,-500.0,0.00036986,5]
[341049332,1730302272934,-151.0,0.00036993,2]
[341049333,1730302272943,-562.0,0.00037182,5]
[341049334,1730302272955,-500.0,0.00037259,5]
[341049335,1730302272964,-2975.73,0.00037259,120]
[341049336,1730302272973,-500.0,0.00037259,5]
[341049337,1730302272983,-219.34198764,0.00037259,5]
[341049338,1730302272993,-500.0,0.0003726,5]
[341049339,1730302273003,-500.0,0.0003726,5]
[341049340,1730302273013,-500.0,0.0003726,5]
[341049341,1730302273023,-474.25461763,0.0003726,5]
[341049342,1730302273032,-500.0,0.0003726,5]
[341049343,1730302273041,-500.0,0.0003726,5]
[341049344,1730302273051,-500.0,0.0003726,5]
[341049345,1730302273062,-650.94,0.0003726,5]
[341049346,1730302273178,-500.0,0.0003726,5]
[341049347,1730302273188,-500.0,0.0003726,5]
[341049348,1730302273199,-645.8,0.0003726,5]
[341049349,1730302273208,-820.11,0.0003726,5]
[341049350,1730302273218,-1894.55,0.0003726,5]
[341049351,1730302273227,-2596.24,0.0003726,5]
[341049352,1730302273237,-1296.63,0.0003726,5]
[341049353,1730302273248,-500.0,0.0003726,5]
[341049354,1730302273258,-420.78562105,0.0003726,5]
[341049355,1730302273268,-500.0,0.0003726,5]
[341049356,1730302273277,-500.0,0.0003726,5]
[341049357,1730302273287,-500.0,0.0003726,5]
[341049358,1730302273296,-500.0,0.0003726,5]
[341049359,1730302273307,-500.0,0.0003726,5]
[341049360,1730302273317,-522.83,0.0003726,5]
[341049361,1730302273327,-858.81,0.0003726,5]
[341049362,1730302273336,-644.61,0.0003726,5]
[341049363,1730302273346,-500.0,0.0003726,5]
[341049364,1730302273356,-500.0,0.0003726,5]
[341049365,1730302273366,-1013.76,0.0003726,5]
[341049366,1730302273376,-1525.36,0.0003726,5]
[341049367,1730302273385,-994.82,0.0003726,5]
[341049368,1730302273395,-1722.33,0.0003726,5]
[341049369,1730302273404,-500.0,0.0003726,5]
[341049370,1730302273414,-765.48,0.0003726,5]
[341049371,1730302273424,-520.05,0.0003726,5]
[341049372,1730302273433,-675.19,0.0003726,5]
[341049373,1730302273443,-746.68,0.0003726,5]
[341049374,1730302273454,-784.67,0.0003726,5]
[341049375,1730302273464,-500.0,0.0003726,5]
[341049376,1730302273473,-1069.78,0.0003726,5]
[341049377,1730302273483,-736.62,0.0003726,5]
[341049378,1730302273493,-854.42,0.0003726,5]
[341049379,1730302273502,-606.31,0.0003726,5]
[341049380,1730302273511,-500.0,0.0003726,5]
[341049381,1730302273521,-500.0,0.0003726,5]
[341049382,1730302273531,-500.0,0.0003726,5]
[341049383,1730302273541,-674.49,0.0003726,5]
[341049384,1730302273550,-982.93,0.0003726,5]
[341049385,1730302273562,-778.7,0.0003726,5]
[341049386,1730302273572,-728.13,0.0003726,5]
[341049387,1730302273581,-295.93047182,0.0003726,5]
[341049388,1730302273590,-1522.75,0.0003726,5]
[341049389,1730302273599,-552.1,0.0003726,5]
[341049390,1730302273610,-500.0,0.0003726,5]
[341049391,1730302273619,-662.62,0.0003726,5]
[341049392,1730302273629,-1018.42,0.0003726,5]
[341049393,1730302273640,-500.0,0.0003726,5]
[341049394,1730302273649,-523.19,0.0003726,5]
[341049395,1730302273659,-1327.53,0.0003726,5]
[341049396,1730302273669,-500.0,0.0003726,5]
[341049397,1730302273678,-607.17,0.0003726,5]
[341049398,1730302273688,-560.36,0.0003726,5]
[341049399,1730302273699,-500.0,0.0003726,5]
[341049400,1730302273710,-508.13,0.0003726,5]
[341049401,1730302273719,-1605.64,0.0003726,2]
[341049402,1730302273729,-500.0,0.0003726,5]
[341049403,1730302273739,-863.12,0.0003726,5]
[341049404,1730302273748,-1678.61,0.0003726,5]
[341049405,1730302273757,-656.55,0.0003726,5]
[341049406,1730302273767,-893.64,0.0003726,5]
[341049407,1730302273776,-1610.11,0.0003726,5]
[341049408,1730302273786,-742.19,0.0003726,5]
[341049409,1730302273795,-785.2,0.0003726,5]
[341049410,1730302273805,-638.8,0.0003726,5]
[341049411,1730302273814,-536.5,0.0003726,5]
[341049412,1730302273824,-948.73,0.0003726,5]
[341049413,1730302273833,-500.0,0.0003726,5]
[341049414,1730302273843,-596.98,0.0003726,5]
[341049415,1730302273852,-1435.74,0.0003726,5]
[341049416,1730302273861,-500.0,0.0003726,5]
[341049417,1730302273871,-1131.97,0.0003726,5]
[341049418,1730302273880,-2913.63,0.0003726,5]
[341049419,1730302273890,-500.0,0.0003726,5]
[341049420,1730302273899,-500.0,0.0003726,5]
[341049421,1730302273909,-1246.85,0.0003726,5]
[341049422,1730302273919,-909.5,0.0003726,5]
[341049423,1730302273931,-682.68,0.0003726,5]
[341049424,1730302273940,-512.41,0.0003726,5]
[341049425,1730302273952,-1653.57,0.0003726,5]
[341049426,1730302273962,-500.0,0.0003726,5]
[341049427,1730302273971,-568.82,0.0003726,5]
[341049428,1730302273982,-607.5,0.0003726,5]
[341049429,1730302273991,-500.0,0.0003726,5]
[341049430,1730302274001,-685.64,0.0003726,5]
[341049431,1730302274011,-500.0,0.0003726,5]
[341049432,1730302274021,-529.75,0.0003726,5]
[341049433,1730302274031,-548.22,0.0003726,5]
[341049434,1730302274040,-728.2,0.0003726,5]
[341049435,1730302274051,-561.05057854,0.0003726,5]
[341049436,1730302274061,-1132.3,0.0003726,5]
[341049437,1730302274070,-597.03,0.0003726,5]
[341049438,1730302274080,-1047.4,0.0003726,5]
[341049439,1730302274090,-770.64,0.0003726,5]
[341049440,1730302274100,-535.78,0.0003726,5]
[341049441,1730302274109,-507.29,0.0003726,5]
[341049442,1730302274119,-536.48,0.0003726,5]
[341049443,1730302274128,-879.42,0.0003726,5]
[341049444,1730302274138,-1152.94,0.0003726,5]
[341049445,1730302274148,-500.0,0.0003726,5]
[341049446,1730302274157,-538.17,0.0003726,5]
[341049447,1730302274167,-1061.7,0.0003726,5]
[341049448,1730302274176,-745.29,0.0003726,5]
[341049449,1730302274186,-3103.25,0.0003726,5]
[341049450,1730302274195,-1669.21,0.0003726,5]
[341049451,1730302274205,-500.0,0.0003726,5]
[341049452,1730302274215,-167.26,0.00037287,2]
[341049453,1730302274225,-500.0,0.00037437,3]
[341049454,1730302274235,-500.0,0.00037446,3]
[341049455,1730302274245,-500.0,0.00037455,3]
[341049456,1730302274254,-500.0,0.00037464,3]
[341049457,1730302274264,-500.0,0.00037473,3]
[341049458,1730302274273,-500.0,0.00037481,3]
[341049459,1730302274283,-500.0,0.0003749,3]
[341049460,1730302274295,-500.0,0.00037499,3]
[341049461,1730302274306,-397.0,0.000375,23]
[341049462,1730302274318,-838.83,0.00037533,5]
[341049463,1730302274328,-500.0,0.00037534,5]
[341049464,1730302274338,-500.0,0.00037534,5]
[341049465,1730302274348,-500.0,0.00037534,5]
[341049466,1730302274357,-500.0,0.00037534,5]
[341049467,1730302274366,-500.0,0.00037534,5]
[341049468,1730302274376,-500.0,0.00037534,5]
[341049469,1730302274385,-650.94,0.00037534,5]
[341049470,1730302274394,-500.0,0.00037534,5]
[341049471,1730302274403,-562.67095491,0.00037534,5]
[341049472,1730302274413,-645.8,0.00037534,5]
[341049473,1730302274422,-820.11,0.00037534,5]
[341049474,1730302274432,-1894.55,0.00037534,5]
[341049475,1730302274441,-2596.24,0.00037534,5]
[341049476,1730302274451,-1296.63,0.00037534,5]
[341049477,1730302274461,-500.0,0.00037534,5]
[341049478,1730302274471,-500.0,0.00037534,5]
[341049479,1730302274481,-500.0,0.00037534,5]
[341049480,1730302274491,-500.0,0.00037534,5]
[341049481,1730302274502,-500.0,0.00037534,5]
[341049482,1730302274512,-500.0,0.00037534,5]
[341049483,1730302274521,-522.83,0.00037534,5]
[341049484,1730302274531,-858.81,0.00037534,5]
[341049485,1730302274541,-644.61,0.00037534,5]
[341049486,1730302274552,-634.2,0.00037534,5]
[341049487,1730302274565,-500.0,0.00037534,5]
[341049488,1730302274575,-1013.76,0.00037534,5]
[341049489,1730302274585,-1525.36,0.00037534,5]
[341049490,1730302274595,-994.82,0.00037534,5]
[341049491,1730302274606,-1722.33,0.00037534,5]
[341049492,1730302274616,-500.0,0.00037534,5]
[341049493,1730302274626,-765.48,0.00037534,5]
[341049494,1730302274637,-520.05,0.00037534,5]
[341049495,1730302274647,-675.19,0.00037534,5]
[341049496,1730302274656,-746.68,0.00037534,5]
[341049497,1730302274667,-784.67,0.00037534,5]
[341049498,1730302274676,-420.5968971,0.00037534,5]
[341049499,1730302274686,-1069.78,0.00037534,5]
[341049500,1730302274695,-736.62,0.00037534,5]
[341049501,1730302274707,-854.42,0.00037534,5]
[341049502,1730302274716,-606.31,0.00037534,5]
[341049503,1730302274727,-500.0,0.00037534,5]
[341049504,1730302274736,-628.72077264,0.00037534,5]
[341049505,1730302274746,-500.0,0.00037534,5]
[341049506,1730302274756,-674.49,0.00037534,5]
[341049507,1730302274765,-982.93,0.00037534,5]
[341049508,1730302274775,-778.7,0.00037534,5]
[341049509,1730302274785,-728.13,0.00037534,5]
[341049510,1730302274794,-1522.75,0.00037534,5]
[341049511,1730302274805,-552.1,0.00037534,5]
[341049512,1730302274815,-193.27508235,0.00037534,5]
[341049513,1730302274824,-662.62,0.00037534,5]
[341049514,1730302274835,-1018.42,0.00037534,5]
[341049515,1730302274844,-500.0,0.00037534,5]
[341049516,1730302274854,-1327.53,0.00037534,5]
[341049517,1730302274864,-422.16374998,0.00037534,5]
[341049518,1730302274874,-607.17,0.00037534,5]
[341049519,1730302274884,-560.36,0.00037534,5]
[341049520,1730302274894,-500.0,0.00037534,5]
[341049521,1730302274903,-508.13,0.00037534,5]
[341049522,1730302274912,-1605.64,0.00037534,2]
[341049523,1730302274922,-500.0,0.00037534,5]
[341049524,1730302274931,-863.12,0.00037534,5]
[341049525,1730302274942,-1678.61,0.00037534,5]
[341049526,1730302274956,-656.55,0.00037534,5]
[341049527,1730302274965,-893.64,0.00037534,5]
[341049528,1730302274974,-1610.11,0.00037534,5]
[341049529,1730302274984,-742.19,0.00037534,5]
[341049530,1730302274994,-785.2,0.00037534,5]
[341049531,1730302275003,-638.8,0.00037534,5]
[341049532,1730302275013,-536.5,0.00037534,5]
[341049533,1730302275023,-948.73,0.00037534,5]
[341049534,1730302275032,-500.0,0.00037534,5]
[341049535,1730302275143,-596.98,0.00037534,5]
[341049536,1730302275152,-1435.74,0.00037534,5]
[341049537,1730302275162,-500.0,0.00037534,5]
[341049538,1730302275171,-1131.97,0.00037534,5]
[341049539,1730302275180,-2913.63,0.00037534,5]
[341049540,1730302275190,-500.0,0.00037534,5]
[341049541,1730302275199,-500.0,0.00037534,5]
[341049542,1730302275208,-1246.85,0.00037534,5]
[341049543,1730302275218,-909.5,0.00037534,5]
[341049544,1730302275227,-682.68,0.00037534,5]
[341049545,1730302275236,-512.41,0.00037534,5]
[341049546,1730302275245,-1653.57,0.00037534,5]
[341049547,1730302275255,-500.0,0.00037534,5]
[341049548,1730302275264,-568.82,0.00037534,5]
[341049549,1730302275274,-607.5,0.00037534,5]
[341049550,1730302275283,-500.0,0.00037534,5]
[341049551,1730302275293,-685.64,0.00037534,5]
[341049552,1730302275302,-500.0,0.00037534,5]
[341049553,1730302275312,-529.75,0.00037534,5]
[341049554,1730302275321,-548.22,0.00037534,5]
[341049555,1730302275330,-728.2,0.00037534,5]
[341049556,1730302275339,-1132.3,0.00037534,5]
[341049557,1730302275349,-597.03,0.00037534,5]
[341049558,1730302275359,-1047.4,0.00037534,5]
[341049559,1730302275368,-770.64,0.00037534,5]
[341049560,1730302275377,-535.78,0.00037534,5]
[341049561,1730302275387,-507.29,0.00037534,5]
[341049562,1730302275396,-536.48,0.00037534,5]
[341049563,1730302275405,-879.42,0.00037534,5]
[341049564,1730302275415,-1152.94,0.00037534,5]
[341049565,1730302275424,-500.0,0.00037534,5]
[341049566,1730302275437,-538.17,0.00037534,5]
[341049567,1730302275452,-1061.7,0.00037534,5]
[341049568,1730302275462,-745.29,0.00037534,5]
[341049569,1730302275471,-3103.25,0.00037534,5]
[341049570,1730302275480,-1669.21,0.00037534,5]
[341049571,1730302275490,-599.48,0.00037534,5]
[341049572,1730302275501,-173.16,0.000376,30]
[341049573,1730302275511,-156.35065037,0.00037619,2]
[341049574,1730302275522,-1000.0,0.00037652,2]
[341049575,1730302275532,-228.48,0.00037672,2]
[341049576,1730302275543,-811.0,0.00037798,2]
[341049577,1730302275555,-165.67511494,0.000378,2]
[341049578,1730302275565,-407.65865035,0.00037808,5]
[341049579,1730302275576,-408.2285858,0.00037808,5]
[341049580,1730302275585,-500.0,0.00037808,5]
[341049581,1730302275595,-500.0,0.00037808,5]
[341049582,1730302275605,-500.0,0.00037808,5]
[341049583,1730302275614,-471.60782966,0.00037808,5]
[341049584,1730302275623,-650.94,0.00037808,5]
[341049585,1730302275634,-393.22537749,0.00037808,5]
[341049586,1730302275643,-645.8,0.00037808,5]
[341049587,1730302275653,-820.11,0.00037808,5]
[341049588,1730302275662,-1894.55,0.00037808,5]
[341049589,1730302275671,-2596.24,0.00037808,5]
[341049590,1730302275681,-1296.63,0.00037808,5]
[341049591,1730302275691,-500.0,0.00037808,5]
[341049592,1730302275702,-500.0,0.00037808,5]
[341049593,1730302275711,-500.0,0.00037808,5]
[341049594,1730302275721,-500.0,0.00037808,5]
[341049595,1730302275730,-341.48385831,0.00037808,5]
[341049596,1730302275740,-500.0,0.00037808,5]
[341049597,1730302275750,-522.83,0.00037808,5]
[341049598,1730302275760,-858.81,0.00037808,5]
[341049599,1730302275769,-644.61,0.00037808,5]
[341049600,1730302275779,-500.0,0.00037808,5]
[341049601,1730302275789,-1013.76,0.00037808,5]
[341049602,1730302275799,-1525.36,0.00037808,5]
[341049603,1730302275808,-994.82,0.00037808,5]
[341049604,1730302275818,-1722.33,0.00037808,5]
[341049605,1730302275828,-500.0,0.00037808,5]
[341049606,1730302275837,-765.48,0.00037808,5]
[341049607,1730302275847,-520.05,0.00037808,5]
[341049608,1730302275856,-675.19,0.00037808,5]
[341049609,1730302275866,-746.68,0.00037808,5]
[341049610,1730302275876,-784.67,0.00037808,5]
[341049611,1730302275885,-1069.78,0.00037808,5]
[341049612,1730302275896,-736.62,0.00037808,5]
[341049613,1730302275906,-854.42,0.00037808,5]
[341049614,1730302275915,-606.31,0.00037808,5]
[341049615,1730302275925,-500.0,0.00037808,5]
[341049616,1730302275934,-500.0,0.00037808,5]
[341049617,1730302275944,-674.49,0.00037808,5]
[341049618,1730302275954,-982.93,0.00037808,5]
[341049619,1730302275964,-778.7,0.00037808,5]
[341049620,1730302275973,-728.13,0.00037808,5]
[341049621,1730302275983,-1522.75,0.00037808,5]
[341049622,1730302275993,-552.1,0.00037808,5]
[341049623,1730302276002,-662.62,0.00037808,5]
[341049624,1730302276021,-1018.42,0.00037808,5]
[341049625,1730302276039,-500.0,0.00037808,5]
[341049626,1730302276056,-1327.53,0.00037808,5]
[341049627,1730302276074,-607.17,0.00037808,5]
[341049628,1730302276092,-560.36,0.00037808,5]
[341049629,1730302276109,-500.0,0.00037808,5]
[341049630,1730302276124,-508.13,0.00037808,5]
[341049631,1730302276141,-1605.64,0.00037808,2]
[341049632,1730302276156,-500.0,0.00037808,5]
[341049633,1730302276171,-863.12,0.00037808,5]
[341049634,1730302276187,-1678.61,0.00037808,5]
[341049635,1730302276207,-656.55,0.00037808,5]
[341049636,1730302276222,-1610.11,0.00037808,5]
[341049637,1730302276235,-893.64,0.00037808,5]
[341049638,1730302276252,-742.19,0.00037808,5]
[341049639,1730302276268,-785.2,0.00037808,5]
[341049640,1730302276284,-638.8,0.00037808,5]
[341049641,1730302276297,-536.5,0.00037808,5]
[341049642,1730302276313,-948.73,0.00037808,5]
[341049643,1730302276327,-261.70949658,0.00037808,5]
[341049644,1730302276341,-1435.74,0.00037808,5]
[341049645,1730302276355,-596.98,0.00037808,5]
[341049646,1730302276369,-500.0,0.00037808,5]
[341049647,1730302276382,-1131.97,0.00037808,5]
[341049648,1730302276396,-2913.63,0.00037808,5]
[341049649,1730302276409,-500.0,0.00037808,5]
[341049650,1730302276423,-598.95193237,0.00037808,5]
[341049651,1730302276436,-1246.85,0.00037808,5]
[341049652,1730302276451,-909.5,0.00037808,5]
[341049653,1730302276464,-682.68,0.00037808,5]
[341049654,1730302276478,-512.41,0.00037808,5]
[341049655,1730302276491,-1653.57,0.00037808,5]
[341049656,1730302276505,-264.19893805,0.00037808,5]
[341049657,1730302276521,-568.82,0.00037808,5]
[341049658,1730302276535,-607.5,0.00037808,5]
[341049659,1730302276550,-500.0,0.00037808,5]
[341049660,1730302276566,-685.64,0.00037808,5]
[341049661,1730302276580,-500.0,0.00037808,5]
[341049662,1730302276594,-529.75,0.00037808,5]
[341049663,1730302276609,-548.22,0.00037808,5]
[341049664,1730302276624,-728.2,0.00037808,5]
[341049665,1730302276639,-1132.3,0.00037808,5]
[341049666,1730302276653,-597.03,0.00037808,5]
[341049667,1730302276668,-1047.4,0.00037808,5]
[341049668,1730302276682,-770.64,0.00037808,5]
[341049669,1730302276695,-535.78,0.00037808,5]
[341049670,1730302276709,-507.29,0.00037808,5]
[341049671,1730302276723,-536.48,0.00037808,5]
[341049672,1730302276736,-879.42,0.00037808,5]
[341049673,1730302276749,-1152.94,0.00037808,5]
[341049674,1730302276763,-500.0,0.00037808,5]
[341049675,1730302276776,-538.17,0.00037808,5]
[341049676,1730302276790,-1061.7,0.00037808,5]
[341049677,1730302276803,-745.29,0.00037808,5]
[341049678,1730302276816,-3103.25,0.00037808,5]
[341049679,1730302276830,-1669.21,0.00037808,5]
[341049680,1730302276843,-361.43,0.000379,14]
[341049681,1730302276856,-309.10861296,0.00037939,2]
[341049682,1730302276871,-2975.73,0.00037944,120]
[341049683,1730302276884,-758.0906,0.00037982,2]
[341049684,1730302276899,-163.43,0.00038068,2]
[341049685,1730302276913,-500.0,0.00038082,5]
[341049686,1730302276928,-500.0,0.00038082,5]
[341049687,1730302276941,-500.0,0.00038082,5]
[341049688,1730302276958,-650.94,0.00038082,5]
[341049689,1730302276972,-645.8,0.00038082,5]
[341049690,1730302276986,-820.11,0.00038082,5]
[341049691,1730302277001,-1894.55,0.00038082,5]
[341049692,1730302277010,-2596.24,0.00038082,5]
[341049693,1730302277020,-1296.63,0.00038082,5]
[341049694,1730302277029,-352.75276947,0.00038082,5]
[341049695,1730302277038,-499.25275885,0.00038082,5]
[341049696,1730302277048,-500.0,0.00038082,5]
[341049697,1730302277057,-286.65120937,0.00038082,5]
[341049698,1730302277066,-500.0,0.00038082,5]
[341049699,1730302277076,-522.83,0.00038082,5]
[341049700,1730302277085,-858.81,0.00038082,5]
[341049701,1730302277095,-644.61,0.00038082,5]
[341049702,1730302277104,-500.0,0.00038082,5]
[341049703,1730302277113,-1013.76,0.00038082,5]
[341049704,1730302277123,-1525.36,0.00038082,5]
[341049705,1730302277132,-994.82,0.00038082,5]
[341049706,1730302277141,-1722.33,0.00038082,5]
[341049707,1730302277151,-500.0,0.00038082,5]
[341049708,1730302277359,-765.48,0.00038082,5]
[341049709,1730302277375,-520.05,0.00038082,5]
[341049710,1730302277396,-675.19,0.00038082,5]
[341049711,1730302277411,-746.68,0.00038082,5]
[341049712,1730302277420,-784.67,0.00038082,5]
[341049713,1730302277430,-1069.78,0.00038082,5]
[341049714,1730302277440,-736.62,0.00038082,5]
[341049715,1730302277453,-854.42,0.00038082,5]
[341049716,1730302277466,-606.31,0.00038082,5]
[341049717,1730302277478,-500.0,0.00038082,5]
[341049718,1730302277487,-500.0,0.00038082,5]
[341049719,1730302277497,-674.49,0.00038082,5]
[341049720,1730302277507,-982.93,0.00038082,5]
[341049721,1730302277516,-778.7,0.00038082,5]
[341049722,1730302277526,-728.13,0.00038082,5]
[341049723,1730302277536,-1522.75,0.00038082,5]
[341049724,1730302277546,-552.1,0.00038082,5]
[341049725,1730302277557,-662.62,0.00038082,5]
[341049726,1730302277569,-1018.42,0.00038082,5]
[341049727,1730302277579,-636.54014893,0.00038082,5]
[341049728,1730302277588,-1327.53,0.00038082,5]
[341049729,1730302277597,-607.17,0.00038082,5]
[341049730,1730302277608,-560.36,0.00038082,5]
[341049731,1730302277619,-500.0,0.00038082,5]
[341049732,1730302277628,-508.13,0.00038082,5]
[341049733,1730302277638,-1605.64,0.00038082,2]
[341049734,1730302277649,-500.0,0.00038082,5]
[341049735,1730302277658,-863.12,0.00038082,5]
[341049736,1730302277668,-1678.61,0.00038082,5]
[341049737,1730302277677,-656.55,0.00038082,5]
[341049738,1730302277687,-1610.11,0.00038082,5]
[341049739,1730302277696,-893.64,0.00038082,5]
[341049740,1730302277708,-742.19,0.00038082,5]
[341049741,1730302277718,-785.2,0.00038082,5]